fUSD/lending_fUSD_20240113
["ID","MTS","AMOUNT","RATE_DAILY","PERIOD"]
[311520245,1705174247003,-150.0,0.00023233,2]
[311520246,1705174247013,-150.0,0.00023239,2]
[311520247,1705174247022,-150.0,0.00023239,2]
[311520248,1705174247031,-150.0,0.0002324,2]
[311520249,1705174247040,-150.0,0.00023241,2]
[311520250,1705174247049,-150.0,0.00023245,2]
[311520251,1705174247061,-300.0,0.00023254,2]
[311520252,1705174247070,-150.0,0.00023259,2]
[311520253,1705174247079,-150.0,0.00023264,2]
[311520254,1705174247089,-150.0,0.00023265,2]
[311520255,1705174247099,-152.71432783,0.00023267,2]
[311520256,1705174247108,-167.2,0.00023268,2]
[311520257,1705174247117,-1093.2292907,0.00023281,2]
[311520258,1705174247127,-150.0,0.00023288,2]
[311520259,1705174247136,-1500.0,0.0002329,2]
[311520260,1705174247145,-271.48297066,0.00023293,2]
[311520261,1705174247154,-224.84,0.00023296,2]
[311520262,1705174247162,-509.79874139,0.000233,2]
[311520263,1705174247171,-211.361665,0.000233,2]
[311520264,1705174247180,-150.0,0.00023343,2]
[311520265,1705174247190,-1500.0,0.00023345,2]
[311520266,1705174247200,-227.80435831,0.00023357,2]
[311520267,1705174247209,-500.0,0.00023359,2]
[311520268,1705174247218,-63916.93224926,0.00023359,2]
[311520269,1705174247231,-281.13637335,0.00023359,2]
[311520270,1705174247243,-431.60659171,0.00023359,2]
[311520271,1705174247257,-1023.7,0.00023359,2]
[311520272,1705174247270,-85721.75143848,0.00023359,2]
[311520273,1705174247279,-22864.7946963,0.0002336,2]
[311520274,1705174247288,-21536.18188488,0.00023376,2]
[311520275,1705174247303,-1365.35041906,0.00023376,2]
[311520276,1705174247316,-307.44911238,0.00023376,2]
[311520277,1705174282100,500.0,0.00020301,2]
[311520278,1705174282406,500.0,0.00020657,2]
[311520279,1705174282718,500.0,0.00021012,2]
[311520280,1705174283043,500.0,0.00021367,2]
[311520281,1705174283366,500.0,0.00021722,2]
[311520282,1705174283695,500.0,0.00022077,2]
[311520283,1705174308507,32013.7198,0.00022073,2]
[311520284,1705174349929,500.0,0.00020301,2]
[311520285,1705174350246,500.0,0.00020701,2]
[311520286,1705174350765,500.0,0.000211,2]
[311520287,1705174350871,500.0,0.000215,2]
[311520288,1705174351192,500.0,0.000219,2]
[311520289,1705174379466,500.0,0.00020301,2]
[311520290,1705174380173,500.0,0.00020747,2]
[311520291,1705174380276,500.0,0.00021193,2]
[311520292,1705174380595,500.0,0.00021639,2]
[311520293,1705174380926,500.0,0.00022085,2]
[311520294,1705174392546,500.0,0.00020301,2]
[311520297,1705174393388,500.0,0.00020806,2]
[311520298,1705174393730,500.0,0.00021311,2]
[311520299,1705174394046,500.0,0.00021815,2]
[311520303,1705174473168,1250.0,0.00022,3]
[311520304,1705174539464,337.30792004,0.00022072,2]
[311520305,1705174649509,436.08,0.00019446,2]
[311520306,1705174649718,436.08,0.00021709,2]
[311520307,1705174729948,295.14443007,0.00022072,2]
[311520308,1705174775137,1000.0,0.00021332,2]
[311520309,1705174785640,2042.71,0.00021357,2]
[311520310,1705174794914,254.82,0.00021516,2]
[311520311,1705174795111,254.82,0.00021729,2]
[311520312,1705174795320,254.82,0.00021942,2]
[311520313,1705174843839,58679.3549,0.0002207,2]
[311520314,1705174920346,258.25137632,0.00022072,2]
[311520315,1705174930335,500.0,0.00020301,2]
[311520316,1705174930642,500.0,0.00020865,2]
[311520317,1705174930960,500.0,0.00021429,2]
[311520318,1705174931264,500.0,0.00021994,2]
[311520319,1705174950742,500.0,0.00020301,2]
[311520320,1705174951047,500.0,0.00020367,2]
[311520321,1705174951362,500.0,0.00020433,2]
[311520322,1705174951670,500.0,0.00020499,2]
[311520323,1705174951974,500.0,0.00020564,2]
[311520324,1705174952283,500.0,0.0002063,2]
[311520325,1705174952591,500.0,0.00020696,2]
[311520326,1705174952895,500.0,0.00020762,2]
[311520327,1705174953220,500.0,0.00020827,2]
[311520328,1705174953566,500.0,0.00020893,2]
[311520329,1705174953825,500.0,0.00020959,2]
[311520330,1705174954261,500.0,0.00021025,2]
[311520331,1705174954507,500.0,0.0002109,2]
[311520332,1705174954729,500.0,0.00021156,2]
[311520333,1705174955051,500.0,0.00021222,2]
[311520334,1705174956480,500.0,0.00021288,2]
[311520335,1705174956790,500.0,0.00021353,2]
[311520336,1705174957101,500.0,0.00021419,2]
[311520337,1705174957489,500.0,0.00021485,2]
[311520338,1705174958268,500.0,0.00021551,2]
[311520339,1705174958353,500.0,0.00021616,2]
[311520340,1705174958453,500.0,0.00021682,2]
[311520341,1705174958713,500.0,0.00021748,2]
[311520342,1705174959548,500.0,0.00021814,2]
[311520343,1705174959859,500.0,0.00021879,2]
[311520344,1705174960152,500.0,0.00021945,2]
[311520345,1705174960452,500.0,0.00022011,2]
[311520346,1705174961276,500.0,0.00022077,2]
[311520347,1705174986964,152.86,0.00021168,2]
[311520348,1705175146284,413.53,0.00019291,2]
[311520349,1705175146504,413.53,0.00021555,2]
[311520350,1705175204008,200.0,0.00021213,2]
[311520351,1705175223169,1906.52,0.00021209,2]
[311520352,1705175243065,156.55,0.00021368,2]
[311520353,1705175243314,156.55,0.0002159,2]
[311520354,1705175243535,156.55,0.00021813,2]
[311520355,1705175243755,156.55,0.00022036,2]
[311520356,1705175244888,164.66,0.00021421,2]
[311520357,1705175362139,155.76668667,0.00022033,2]
[311520365,1705175431511,-727.69660047,0.00022123,2]
[311520366,1705175431529,-316.7261477,0.00022123,2]
[311520367,1705175431540,-182.8338523,0.00022124,2]
[311520368,1705175431565,-1210.24940779,0.00022124,2]
[311520369,1705175431625,-292.97642527,0.00022124,2]
[311520370,1705175431636,-628.5781616,0.00022124,2]
[311520371,1705175431647,-1133.12918751,0.00022124,2]
[311520372,1705175431659,-1251.56054187,0.00022124,2]
[311520373,1705175431667,-629.53856674,0.00022125,2]
[311520374,1705175431791,-506.000056,0.00022125,2]
[311520375,1705175431801,-311.88548735,0.00022126,2]
[311520376,1705175431810,-163.2600686,0.00022127,2]
[311520377,1705175431822,-200.46556963,0.00022127,2]
[311520378,1705175431831,-108.90420319,0.00022129,2]
[311520379,1705175431846,-2186.12284319,0.00022129,2]
[311520380,1705175431855,-150.0,0.00022137,2]
[311520381,1705175431865,-300.0,0.00022137,2]
[311520382,1705175431874,-709.91,0.00022145,2]
[311520383,1705175431884,-714.91,0.00022147,2]
[311520384,1705175431893,-721.46,0.00022147,2]
[311520386,1705175431902,-709.94,0.00022147,2]
[311520388,1705175431911,-712.57,0.00022147,2]
[311520389,1705175431921,-727.91,0.00022147,2]
[311520391,1705175431930,-3358.46,0.00022147,2]
[311520392,1705175431940,-9564.74,0.00022147,2]
[311520393,1705175431949,-736.85,0.00022147,2]
[311520394,1705175431959,-254.82,0.00022155,2]
[311520395,1705175431970,-499.99,0.00022156,2]
[311520396,1705175431980,-1958.21,0.00022156,2]
[311520397,1705175431989,-322.05,0.00022156,2]
[311520398,1705175432251,-715.55,0.00022156,2]
[311520399,1705175432263,-150.99,0.00022156,2]
[311520400,1705175432272,-2080.3,0.00022156,2]
[311520401,1705175432281,-722.89,0.00022156,2]
[311520402,1705175432290,-712.05,0.00022157,2]
[311520403,1705175432300,-710.0,0.00022157,2]
[311520404,1705175432309,-719.28,0.00022158,2]
[311520405,1705175432319,-720.09,0.0002216,2]
[311520406,1705175432328,-717.28,0.00022162,2]
[311520407,1705175432337,-717.3,0.00022164,2]
[311520408,1705175432346,-1000.0,0.00022167,2]
[311520409,1705175432355,-734.65,0.00022167,2]
[311520410,1705175432364,-711.63,0.00022167,2]
[311520411,1705175432373,-727.85,0.00022167,2]
[311520412,1705175432382,-716.29,0.00022167,2]
[311520413,1705175432391,-738.37,0.00022167,2]
[311520414,1705175432400,-718.76,0.00022167,2]
[311520415,1705175432410,-715.59,0.00022167,2]
[311520416,1705175432419,-727.64,0.00022167,2]
[311520417,1705175432428,-715.95,0.00022167,2]
[311520418,1705175432437,-722.42,0.00022167,2]
[311520419,1705175432446,-724.31,0.00022167,2]
[311520420,1705175432456,-155.0,0.00022168,2]
[311520421,1705175432465,-722.19,0.00022168,2]
[311520422,1705175432475,-714.04,0.00022168,2]
[311520423,1705175432485,-734.92,0.00022168,2]
[311520424,1705175432494,-726.85,0.00022168,2]
[311520425,1705175432503,-715.13,0.00022168,2]
[311520426,1705175432513,-716.93,0.00022168,2]
[311520427,1705175432523,-730.42,0.00022168,2]
[311520428,1705175432531,-731.35,0.00022168,2]
[311520429,1705175432543,-712.0,0.00022168,2]
[311520430,1705175432552,-714.64,0.00022168,2]
[311520431,1705175432561,-737.0,0.00022168,2]
[311520432,1705175432571,-717.19,0.00022168,2]
[311520433,1705175432580,-301.07325001,0.00022169,2]
[311520434,1705175432598,-2451.21332826,0.00022169,2]
[311520435,1705175432611,-342.61663816,0.00022169,2]
[311520436,1705175432621,-1492.51947359,0.00022169,2]
[311520437,1705175432631,-726.22,0.00022169,2]
[311520438,1705175432641,-734.01,0.00022169,2]
[311520439,1705175432653,-697.53270087,0.00022169,2]
[311520440,1705175432664,-400.0,0.00022169,2]
[311520441,1705175432674,-712.2,0.0002217,2]
[311520442,1705175432684,-500.0,0.0002217,2]
[311520443,1705175432693,-500.0,0.0002217,2]
[311520444,1705175432703,-500.0,0.0002217,2]
[311520445,1705175432713,-500.0,0.0002217,2]
[311520446,1705175432722,-500.0,0.0002217,2]
[311520447,1705175432732,-508.01387017,0.0002217,2]
[311520448,1705175432742,-500.0,0.0002217,2]
[311520449,1705175432751,-197.83972358,0.0002217,2]
[311520450,1705175432761,-711.84,0.0002217,2]
[311520451,1705175432771,-718.96,0.00022179,2]
[311520452,1705175432781,-1906.52,0.00022188,2]
[311520453,1705175432791,-156.55,0.00022258,2]
[311520454,1705175432802,-27291.0806,0.00022299,2]
[311520455,1705175432811,-223.64175143,0.00022299,2]
[311520456,1705175432821,-225.96995428,0.00022299,2]
[311520457,1705175432831,-362.16685762,0.00022299,2]
[311520458,1705175432843,-2500.0,0.000223,2]
[311520459,1705175432856,-155.76668666,0.00022328,2]
[311520460,1705175432865,-254.82,0.00022368,2]
[311520461,1705175432875,-386.45072727,0.00022397,2]
[311520462,1705175432884,-24312.16676934,0.00022397,2]
[311520463,1705175432895,-249.77717273,0.00022397,2]
[311520464,1705175432905,-500.0,0.00022398,2]
[311520465,1705175432915,-500.0,0.00022398,2]
[311520466,1705175432925,-500.0,0.00022398,2]
[311520467,1705175432935,-500.0,0.00022398,2]
[311520468,1705175432946,-500.0,0.00022398,2]
[311520469,1705175432956,-500.0,0.00022398,2]
[311520470,1705175432966,-500.0,0.00022398,2]
[311520471,1705175432976,-500.0,0.00022398,2]
[311520472,1705175432987,-500.0,0.00022398,2]
[311520473,1705175432997,-500.0,0.00022398,2]
[311520474,1705175433008,-500.0,0.00022398,2]
[311520475,1705175433018,-500.0,0.00022398,2]
[311520476,1705175433028,-500.0,0.00022398,2]
[311520477,1705175433039,-500.0,0.00022398,2]
[311520478,1705175433048,-500.0,0.00022398,2]
[311520479,1705175433058,-500.0,0.00022398,2]
[311520480,1705175433068,-500.0,0.00022398,2]
[311520481,1705175433078,-500.0,0.00022398,2]
[311520482,1705175433089,-500.0,0.00022398,2]
[311520483,1705175433099,-500.0,0.00022398,2]
[311520484,1705175433109,-507.82165506,0.00022398,2]
[311520485,1705175433120,-500.0,0.00022398,2]
[311520486,1705175433130,-500.0,0.00022398,2]
[311520487,1705175433141,-500.0,0.00022398,2]
[311520488,1705175433151,-500.0,0.00022398,2]
[311520489,1705175433163,-500.0,0.00022398,2]
[311520490,1705175433173,-500.0,0.00022398,2]
[311520491,1705175433183,-500.0,0.00022398,2]
[311520492,1705175433193,-500.0,0.00022398,2]
[311520493,1705175433203,-80.46352117,0.00022398,2]
[311520494,1705175433217,-419.53647883,0.00022398,2]
[311520495,1705175433227,-130.86254255,0.00022398,2]
[311520496,1705175433238,-369.13745745,0.00022398,2]
[311520497,1705175433249,-500.0,0.00022398,2]
[311520498,1705175433258,-500.0,0.00022398,2]
[311520499,1705175433270,-500.0,0.00022398,2]
[311520500,1705175433281,-57.65511935,0.00022398,2]
[311520501,1705175437526,-442.34488065,0.00022398,2]
[311520502,1705175437538,-500.0,0.00022398,2]
[311520503,1705175437548,-56.25403897,0.00022398,2]
[311520504,1705175437635,-443.74596103,0.00022398,2]
[311520505,1705175437644,-542.34830065,0.00022398,2]
[311520506,1705175437653,-500.0,0.00022398,2]
[311520507,1705175437662,-494.85195475,0.00022398,2]
[311520508,1705175437671,-500.0,0.00022398,2]
[311520509,1705175437681,-500.0,0.00022398,2]
[311520510,1705175437690,-500.0,0.00022398,2]
[311520511,1705175437699,-500.0,0.00022398,2]
[311520512,1705175437708,-500.0,0.00022398,2]
[311520513,1705175437717,-500.0,0.00022398,2]
[311520514,1705175437726,-271.14,0.00022398,2]
[311520515,1705175437736,-500.0,0.00022398,2]
[311520516,1705175437745,-500.0,0.00022398,2]
[311520517,1705175437754,-500.0,0.00022398,2]
[311520518,1705175437763,-500.0,0.00022398,2]
[311520519,1705175437772,-500.0,0.00022398,2]
[311520520,1705175437781,-500.0,0.00022398,2]
[311520521,1705175437790,-500.0,0.00022398,2]
[311520522,1705175437799,-500.0,0.00022398,2]
[311520523,1705175437809,-500.0,0.00022398,2]
[311520524,1705175437818,-500.0,0.00022398,2]
[311520525,1705175437827,-490.90550357,0.00022398,2]
[311520526,1705175437852,-9.09449643,0.00022398,2]
[311520527,1705175437861,-500.0,0.00022398,2]
[311520528,1705175437870,-500.0,0.00022398,2]
[311520529,1705175437879,-500.0,0.00022398,2]
[311520530,1705175437888,-500.0,0.00022398,2]
[311520531,1705175437898,-500.0,0.00022398,2]
[311520532,1705175437907,-500.0,0.00022398,2]
[311520533,1705175437916,-500.0,0.00022398,2]
[311520534,1705175437925,-500.0,0.00022398,2]
[311520535,1705175437934,-500.0,0.00022398,2]
[311520536,1705175437943,-500.0,0.00022398,2]
[311520537,1705175437952,-500.0,0.00022398,2]
[311520538,1705175437961,-500.0,0.00022398,2]
[311520539,1705175437970,-500.0,0.00022398,2]
[311520540,1705175437978,-500.0,0.00022398,2]
[311520541,1705175437987,-500.0,0.00022398,2]
[311520542,1705175437997,-378.19999999,0.00022398,2]
[311520543,1705175438007,-274.27786535,0.00022398,2]
[311520544,1705175438016,-500.0,0.00022398,2]
[311520545,1705175438025,-79109.95595413,0.00022399,2]
[311520546,1705175438052,-3279.9314489,0.00022399,2]
[311520547,1705175438063,-467.91216912,0.00022399,2]
[311520578,1705175440010,-9012.78812622,0.00022399,2]
[311520581,1705175440064,-2433.79377245,0.00022399,2]
[311520582,1705175440076,-2490.53561742,0.00022399,2]
[311520583,1705175440087,-54118.039635,0.00022399,2]
[311520584,1705175440119,-498.15863507,0.00022399,2]
[311520585,1705175440130,-2030.05024149,0.00022399,2]
[311520586,1705175440141,-3264.94811256,0.00022399,2]
[311520587,1705175440175,-453.8784,0.00022399,2]
[311520588,1705175440186,-6740.94450831,0.00022399,2]
[311520589,1705175440197,-2318.44313815,0.00022399,2]
[311520590,1705175440209,-10731.25,0.00022399,2]
[311520591,1705175440220,-1783.23346018,0.00022399,2]
[311520592,1705175440231,-42950.99917801,0.00022399,2]
[311520593,1705175440243,-938.06556108,0.00022399,2]
[311520594,1705175440254,-2159.10977032,0.00022399,2]
[311520595,1705175440265,-424.54446131,0.00022399,2]
[311520596,1705175440286,-2099.64573198,0.00022399,2]
[311520597,1705175440297,-688.07518278,0.00022399,2]
[311520598,1705175440868,-504395.50726341,0.00022399,2]
[311520599,1705175440877,-500.0,0.00022399,2]
[311520600,1705175440887,-942062.61065016,0.00022399,2]
[311520601,1705175440896,-129236.66967931,0.000224,2]
[311520602,1705175440905,-164.66,0.00022428,2]
[311520603,1705175440914,-156.55,0.00022481,2]
[311520604,1705175440923,-500.0,0.00022499,2]
[311520606,1705175440932,-19110.28636174,0.000225,2]
[311520607,1705175440941,-300.0,0.00022564,2]
[311520608,1705175440950,-254.82,0.00022581,2]
[311520609,1705175440959,-26836.41340036,0.000227,2]
[311520610,1705175440968,-254.82,0.00022794,2]
[311520611,1705175440978,-500.0,0.00022799,2]
[311520613,1705175440987,-500.0,0.00022799,2]
[311520614,1705175440996,-500.0,0.00022799,2]
[311520616,1705175441006,-505167.17128526,0.000228,2]
[311520617,1705175441015,-1100.07310034,0.00022908,2]
[311520619,1705175441025,-154.04137752,0.00022991,2]
[311520621,1705175441034,-189.97,0.00023,2]
[311520623,1705175441044,-254.82,0.00023007,2]
[311520625,1705175441054,-150.0,0.00023067,2]
[311520627,1705175441063,-1906.52,0.00023166,2]
[311520628,1705175441073,-254.82,0.0002322,2]
[311520629,1705175441082,-150.0,0.000233,2]
[311520630,1705175441092,-500.0,0.00023374,2]
[311520631,1705175441102,-6045.27273443,0.00023375,2]
[311520632,1705175441112,-2000.0,0.00023376,2]
[311520633,1705175441121,-200.0,0.00023376,2]
[311520634,1705175441131,-3444.2047867,0.00023378,2]
[311520635,1705175441141,-158163.2274673,0.00023394,2]
[311520636,1705175441151,-9220.082695,0.00023394,2]
[311520637,1705175441161,-224.84,0.0002341,2]
[311520638,1705175441170,-254.82,0.00023433,2]
[311520639,1705175441180,-164.66,0.00023435,2]
[311520640,1705175441190,-379.69,0.00023471,2]
[311520641,1705175441199,-224.84,0.00023523,2]
[311520642,1705175441209,-379.69,0.00023586,2]
[311520643,1705175441219,-2000.0,0.0002361,2]
[311520644,1705175441230,-200.0,0.0002361,2]
[311520645,1705175441239,-224.84,0.00023637,2]
[311520646,1705175441249,-254.82,0.00023646,2]
[311520647,1705175441259,-379.69,0.000237,2]
[311520648,1705175441269,-150.0,0.00023719,2]
[311520649,1705175441279,-1370.1437399,0.00023736,2]
[311520650,1705175441289,-224.84,0.00023751,2]
[311520651,1705175441299,-379.69,0.00023815,2]
[311520652,1705175441310,-413.53,0.00023819,2]
[311520653,1705175441320,-2000.0,0.00023846,2]
[311520654,1705175441330,-200.0,0.00023846,2]
[311520655,1705175441340,-254.82,0.00023859,2]
[311520656,1705175441352,-200.0,0.00023864,2]
[311520657,1705175441365,-3119.28,0.00023878,2]
[311520658,1705175441375,-379.69,0.00023929,2]
[311520659,1705175441384,-300.0,0.00023934,2]
[311520660,1705175441393,-26836.41340035,0.00023991,2]
[311520661,1705175441402,-1000.0,0.00023999,2]
[311520662,1705175441411,-155.0,0.00024,2]
[311520663,1705175441420,-200.94414737,0.00024,2]
[311520664,1705175441429,-431.11450683,0.00024,2]
[311520665,1705175441438,-1000.0,0.00024,2]
[311520666,1705175441448,-1000.0,0.00024,2]
[311520667,1705175441457,-1300.0,0.00024,3]
[311520668,1705175441467,-3000.0,0.00024,2]
[311520669,1705175441478,-3000.0,0.0002401,2]
[311520670,1705175441490,-3000.0,0.0002402,2]
[311520671,1705175441501,-3000.0,0.0002403,2]
[311520672,1705175441511,-3000.0,0.0002404,2]
[311520673,1705175441520,-3000.0,0.0002405,2]
[311520674,1705175441530,-3000.0,0.0002406,2]
[311520675,1705175441540,-3000.0,0.0002407,2]
[311520676,1705175441554,-254.82,0.00024072,2]
[311520677,1705175441563,-3000.0,0.0002408,2]
[311520678,1705175441572,-2000.0,0.00024084,2]
[311520679,1705175441582,-200.0,0.00024084,2]
[311520680,1705175441593,-3000.0,0.0002409,2]
[311520681,1705175441604,-403.76748934,0.00024098,2]
[311520682,1705175441614,-303.33920622,0.00024098,2]
[311520683,1705175441625,-310.52776489,0.000241,2]
[311520684,1705175441636,-3000.0,0.000241,2]
[311520685,1705175441647,-3000.0,0.0002411,2]
[311520686,1705175441657,-3000.0,0.0002412,2]
[311520687,1705175441668,-3000.0,0.0002413,2]
[311520688,1705175441678,-3000.0,0.0002414,2]
[311520689,1705175441687,-1906.52,0.00024145,2]
[311520690,1705175441696,-3000.0,0.0002415,2]
[311520691,1705175441705,-3000.0,0.0002416,2]
[311520692,1705175441714,-3000.0,0.0002417,2]
[311520693,1705175441723,-3000.0,0.0002418,2]
[311520694,1705175441733,-3000.0,0.0002419,2]
[311520695,1705175441742,-3000.0,0.000242,2]
[311520696,1705175441752,-3000.0,0.0002421,2]
[311520697,1705175441762,-3000.0,0.0002422,2]
[311520698,1705175441773,-3000.0,0.0002423,2]
[311520699,1705175441783,-3000.0,0.0002424,2]
[311520700,1705175441793,-3000.0,0.0002425,2]
[311520701,1705175441802,-3000.0,0.0002426,2]
[311520702,1705175441813,-200.0,0.00024263,2]
[311520703,1705175441822,-3000.0,0.0002427,2]
[311520704,1705175441832,-500.0,0.00024272,2]
[311520705,1705175441842,-3000.0,0.0002428,2]
[311520706,1705175441852,-254.82,0.00024285,2]
[311520707,1705175441863,-3000.0,0.0002429,2]
[311520708,1705175441873,-167.0,0.00024297,2]
[311520709,1705175441883,-225.96995421,0.00024299,2]
[311520710,1705175441893,-3761.45912,0.000243,2]
[311520711,1705175441903,-210.0,0.0002435,2]
[311520712,1705175441913,-168.94,0.00024365,2]
[311520713,1705175441923,-307.04,0.00024409,2]
[311520714,1705175441934,-1390.829,0.00024409,2]
[311520715,1705175441943,-449.0,0.00024409,2]
[311520716,1705175441953,-835.0,0.00024409,2]
[311520717,1705175441963,-1881.33,0.00024409,2]
[311520718,1705175441972,-1083.246,0.00024409,2]
[311520719,1705175441981,-700.0,0.00024409,2]
[311520720,1705175441991,-526.0,0.00024409,2]
[311520721,1705175442001,-1252.0,0.00024409,2]
[311520722,1705175442011,-1234.0,0.00024409,2]
[311520723,1705175442020,-1931.0,0.00024409,2]
[311520724,1705175442030,-240.038,0.00024409,2]
[311520725,1705175442040,-494.879,0.00024409,2]
[311520726,1705175442050,-510.186,0.00024409,2]
[311520727,1705175442060,-318.0,0.00024409,2]
[311520728,1705175442070,-235.0,0.00024409,2]
[311520729,1705175442079,-879.0,0.00024409,2]
[311520730,1705175442088,-4632.472,0.00024409,2]
[311520731,1705175442098,-19683.0,0.00024409,2]
[311520732,1705175442107,-167.959,0.00024409,2]
[311520733,1705175442117,-2902.0,0.00024409,2]
[311520734,1705175442127,-8086.0,0.00024409,2]
[311520735,1705175442136,-5566.0,0.00024409,2]
[311520736,1705175442145,-150.0,0.00024409,2]
[311520737,1705175442155,-150.436,0.00024409,2]
[311520738,1705175442165,-2271.0,0.00024409,2]
[311520739,1705175442175,-7343.0,0.00024409,2]
[311520740,1705175442186,-4166.0,0.00024409,2]
[311520741,1705175442195,-284.928,0.00024409,2]
[311520742,1705175442205,-159.578,0.00024409,2]
[311520743,1705175442215,-1028.0,0.00024409,2]
[311520744,1705175442225,-150.649,0.00024409,2]
[311520745,1705175442235,-256.349,0.00024409,2]
[311520746,1705175442244,-197.226,0.00024409,2]
[311520747,1705175442254,-250.0,0.00024409,2]
[311520748,1705175442264,-164.66,0.00024443,2]
[311520749,1705175442274,-254.82,0.00024498,2]
[311520750,1705175442284,-3332.0,0.000245,2]
[311520751,1705175442293,-30162.0,0.000246,2]
[311520752,1705175442304,-602.81,0.00024658,4]
[311520754,1705175442314,-250.0,0.00024658,2]
[311520756,1705175442324,-254.82,0.00024711,2]
[311520758,1705175442334,-3119.28,0.00024748,2]
[311520759,1705175442343,-254.82,0.00024924,2]
[311520761,1705175442355,-635.58,0.0002498,2]
[311520763,1705175442364,-9495.77,0.0002498,2]
[311520765,1705175442374,-1069.76501515,0.00025,2]
[311520767,1705175442383,-303.15894596,0.00025,2]
[311520769,1705175442393,-167.20178626,0.00025,2]
[311520771,1705175442402,-693.1186857,0.00025,2]
[311520773,1705175442411,-201.83579665,0.00025,2]
[311520775,1705175442420,-1247.48098647,0.00025,2]
[311520778,1705175442429,-387.44495424,0.00025,2]
[311520781,1705175442440,-1582.64010755,0.00025,2]
[311520782,1705175442450,-630.26679258,0.00025,2]
[311520784,1705175442462,-1000.0,0.00025,2]
[311520786,1705175442472,-1000.0,0.00025,2]
[311520787,1705175442482,-650.0,0.00025,2]
[311520788,1705175442491,-1000.0,0.00025,2]
[311520789,1705175442501,-450.0,0.0002502,3]
[311520790,1705175442511,-167.0,0.00025099,2]
[311520791,1705175442521,-1906.52,0.00025123,2]
[311520792,1705175442532,-254.82,0.00025137,2]
[311520793,1705175442544,-500.0,0.00025281,2]
[311520794,1705175442558,-26836.41340035,0.00025282,2]
[311520795,1705175442567,-153.81606553,0.00025314,2]
[311520796,1705175442576,-254.82,0.0002535,2]
[311520797,1705175442585,-164.66,0.0002545,2]
[311520798,1705175442597,-200.0,0.00025561,2]
[311520799,1705175442606,-800.0,0.00025561,2]
[311520800,1705175442617,-254.82,0.00025563,2]
[311520801,1705175442627,-3119.28,0.00025617,2]
[311520802,1705175442636,-168.94,0.00025723,2]
[311520803,1705175442646,-500.0,0.0002573,2]
[311520804,1705175442654,-200.0,0.0002573,2]
[311520805,1705175442663,-167.0,0.00025901,2]
[311520806,1705175442672,-1000.0,0.00026,2]
[311520807,1705175442681,-1000.0,0.00026,2]
[311520808,1705175442690,-1350.0,0.00026,3]
[311520809,1705175442699,-2416.0,0.00026,2]
[311520810,1705175442708,-433.0,0.00026,2]
[311520811,1705175442719,-343.0,0.00026,2]
[311520812,1705175442728,-150.0,0.00026079,2]
[311520813,1705175442737,-413.53,0.00026083,2]
[311520814,1705175442746,-1906.52,0.00026102,2]
[311520815,1705175442755,-208.0,0.00026255,2]
[311520816,1705175442764,-225.96995421,0.00026298,3]